Cogmind - Beta 16 --- EXPLORER MODE // 2026.01.16 @ 16:47:19 Player: K.K.Y. Result: Destroyed by B4-CEN(R) with Subdweller Laser Performance ------------- Evolutions (0) 0 Regions Visited (3) 600 Robots Destroyed (47) 235 Value Destroyed (1197) 1197 Prototype IDs (12) 240 Alien Tech Used (0) 0 Bonus (-357) -357 TOTAL SCORE: 1915 Bonus ------- Friendly Fire -357 Cogmind --------- Core Integrity 0/250 Matter 300/300 Energy 40/100 System Corruption 0% Temperature Cool (6) Movement Walking (130) Location -10/Subcaves Parts ------- > --- POWER (1) -------- (None) > --- PROPULSION (2) --- Cargo Legs > --- UTILITY (3+2) ---- Improved Heat Sink Improved Heat Sink Large Storage Unit > --- WEAPON (2) ------- Makeshift Laser Beamcaster > --- INVENTORY (15) --- Light Angular Momentum Engine High-capacity Storage Unit Huge Storage Unit Humpback Sensor Array Improved Terrain Scanner Makeshift Light Armor Plating Makeshift Laser Beamcaster Makeshift Shrapnel Gun Slug Cannon Mining Laser Multitool Ripper Peak State ------------ > --- POWER ------------ Ion Engine > --- PROPULSION ------- Cargo Legs > --- UTILITY ---------- Improved Heat Sink Improved Heat Sink Large Storage Unit > --- WEAPON ----------- Makeshift Laser Beamcaster > --- INVENTORY -------- Light Angular Momentum Engine High-capacity Storage Unit Huge Storage Unit Humpback Sensor Array Improved Terrain Scanner Makeshift Light Armor Plating Makeshift Laser Beamcaster Makeshift Shrapnel Gun Slug Cannon Mining Laser Multitool Ripper [Rating: 37] Favorites ----------- Power Ion Engine Engine Ion Engine Propulsion Light Treads Treads Light Treads Leg Cargo Legs Utility Improved Heat Sink Device Improved Heat Sink Storage Large Storage Unit Protection Light Armor Plating Weapon Beam Rifle Energy Gun Beam Rifle Ballistic Gun Assault Rifle Build | -11 -10 -10 -10 ------- Run | Yrd Mat Min Sub Slots Evolved 1 | . 1 . . Power . | . . . . Propulsion . | . . . . Utility 1 | . 1 . . Weapon . | . . . . Parts Attached 27 | 7 7 4 9 Power 3 | 1 1 1 . Engine 3 | 1 1 1 . Core . | . . . . Reactor . | . . . . Propulsion 8 | 2 1 2 3 Treads 7 | 2 1 2 2 Leg 1 | . . . 1 Wheel . | . . . . Hover . | . . . . Flight . | . . . . Utility 8 | 2 2 1 3 Device 3 | . . 1 2 Storage 3 | . 2 . 1 Processor . | . . . . Hackware . | . . . . Protection 2 | 2 . . . Artifact . | . . . . Weapon 8 | 2 3 . 3 Energy Gun 7 | 1 3 . 3 Energy Cannon . | . . . . Ballistic Gun 1 | 1 . . . Ballistic Cannon . | . . . . Launcher . | . . . . Special Weapon . | . . . . Impact Weapon . | . . . . Slashing Weapon . | . . . . Piercing Weapon . | . . . . Special Melee Weapon . | . . . . Unidentified Prototypes . | . . . . Parts Lost 5 | . 3 . 2 Power 1 | . . . 1 Propulsion 2 | . 1 . 1 Utility 2 | . 2 . . Weapon . | . . . . Highest Loss Streak 1 | . 1 . 1 To Critical Strikes 1 | . 1 . . Average Backups 12 | 2 9 13 13 Power . | . . . 1 Propulsion . | . 1 2 . Utility 5 | 1 2 4 6 Weapon 6 | . 5 6 6 Tool/Special . | . . . . Unused Backups 16 | . . . 16 Power 2 | . . . 2 Propulsion . | . . . . Utility 5 | . . . 5 Weapon 8 | . . . 8 Tool/Special 1 | . . . 1 Average Slot Usage (%) 89 | . 90 82 92 Engine 11 | . 12 12 11 Treads 20 | . 22 22 18 Device 15 | . . 9 23 Storage 11 | . 9 12 11 Protection 4 | . 20 . . Energy Gun 24 | . 22 25 24 Peak Build Rating 37 | 7 11 13 37 Average Rating 17 | 5 9 12 21 On Entrance 7 | . 7 9 13 Avg Prop Armor Cover (%) . | . . . . Naked Turns . | . . . . Heaviest Build 37 | 13 37 32 35 Greatest Support 55 | 40 40 40 55 Greatest Overweight (x) 2 | 2 1 1 1 Average Overweight (x) . | . . . . Largest Inventory Capacity 25 | 5 15 15 25 Average Capacity 14 | 5 12 15 15 Most Carried 15 | 5 14 15 15 Average Carried 13 | 2 9 13 14 Final Capacity 15 | 5 15 15 15 Final Carried 15 | 4 14 14 15 Class Distribution -------------------- 74% | Hacker-Mutant 25% | Scavenger-Mutant Dominant Class ---------------- Hacker-Mutant | -10/Materials Hacker-Mutant | -10/Mines Hacker-Mutant | -10/Subcaves Resources | -11 -10 -10 -10 ----------- Run | Yrd Mat Min Sub Matter Collected 659 | 291 228 40 100 Remotely . | . . . . Salvage Created 1672 | 101 512 310 749 Parts 88 | 5 22 10 51 Haulers Intercepted 2 | . 2 . . Recyclers Shooed . | . . . . Parts Field Recycled . | . . . . Retrieved Matter . | . . . . Parts Self-Destructed . | . . . . Prevented . | . . . . Parts Restored . | . . . . Kills | -11 -10 -10 -10 ------- Run | Yrd Mat Min Sub Combat Hostiles Destroyed 33 | . 11 4 18 Guns 30 | . 10 3 17 Classes Destroyed 12 | 2 6 . 4 Builder 1 | . 1 . . Tunneler 2 | 2 . . . Hauler 2 | . 2 . . Recycler 2 | 1 . 1 . Turret 2 | . . . 2 Watcher 2 | . 2 . . Swarmer 8 | . 4 . 4 Grunt 9 | . 4 4 1 Sentry 1 | . . . 1 Artisan 2 | . . . 2 Subdweller 15 | . 3 . 12 Zionite 2 | . . . 2 Thug 1 | . . 1 . Best Kill Streak 6 | 2 3 3 6 Combat Bots Only 4 | . 3 2 4 Max Kills in Single Turn 2 | 1 1 1 2 Gunslinging 1 | . . . 1 Exploded . | . . . . Melee . | . . . . Uniques/NPCs Destroyed . | . . . . Combat | -11 -10 -10 -10 -------- Run | Yrd Mat Min Sub Hostile Shots Fired 225 | . 66 26 133 Missed 69 | . 10 8 51 Hits 156 | . 56 18 82 Projectile 156 | . 56 18 82 Critical Strikes 4 | . 1 . 3 Damage Taken 1332 | . 421 141 770 Core 260 | . 81 24 155 Absorbed by Shields . | . . . . Ignored by Resistances 830 | . 271 85 474 Core Remaining (%) 100 | 100 . . . Volleys Fired 239 | 7 59 28 145 Largest 2 | 2 2 2 2 Hottest 131 | 70 112 112 131 Shots Fired 410 | 14 77 42 277 Gun 410 | 14 77 42 277 Cannon . | . . . . Launcher . | . . . . Special . | . . . . Kinetic 16 | 7 9 . . Thermal 394 | 7 68 42 277 Explosive . | . . . . Electromagnetic . | . . . . Robot Hit Streak 84 | 12 20 24 84 Robot Miss Streak 2 | . 2 1 2 Penetration Max . | . . . . Secondary Targets 4 | . . 1 3 Max Gunslinging Chain 1 | . . 1 1 Shots Hit Robots 235 | 12 64 38 121 Core Hits 76 | 4 21 14 37 Critical Kills . | . . . . Critical Parts Destroyed . | . . . . Critical Strikes 26 | . 5 3 18 Burn 26 | . 5 3 18 Melee Attacks . | . . . . Impact . | . . . . Slashing . | . . . . Piercing . | . . . . Sneak Attacks . | . . . . Combat Hostiles . | . . . . Follow-up Attacks . | . . . . Damage Inflicted 3678 | 153 947 545 2033 Guns 3668 | 153 937 545 2033 Cannons . | . . . . Explosions . | . . . . Melee . | . . . . Ramming 10 | . 10 . . Kinetic 113 | 65 48 . . Thermal 3555 | 88 889 545 2033 Explosive . | . . . . Electromagnetic . | . . . . Impact . | . . . . Slashing . | . . . . Piercing . | . . . . Highest Corruption . | . . . . Average Corruption . | . . . . Corruption Purged . | . . . . Corruption Blocked . | . . . . Overload Shots . | . . . . Overflow Damage . | . . . . Projectiles . | . . . . Explosions . | . . . . Melee . | . . . . Knockbacks . | . . . . Impact . | . . . . Kinetic . | . . . . Secondary . | . . . . Self-Inflicted Damage . | . . . . Shots . | . . . . Rammed 2 | . 2 . . Targets Rammed 2 | . 2 . . Kicked . | . . . . Crushed . | . . . . Highest Temperature 521 | 108 521 144 5 Average Temperature 133 | 41 165 61 5 Received Heat Transfer 768 | . 204 129 435 Effects 16 | . 16 . . Shutdowns 5 | . 5 . . Energy Bleed 2 | . 2 . . Interference 2 | . 2 . . Matter Decay 1 | . 1 . . Short Circuit 1 | . 1 . . Damage (minor) 1 | . 1 . . Damage (major) 4 | . 4 . . Siege Activations . | . . . . Martial Activations . | . . . . Shielding Activations . | . . . . Robots Disrupted . | . . . . Combat Hostiles . | . . . . Robots Corrupted . | . . . . Combat Hostiles . | . . . . Parts Fried . | . . . . Impact Corruptions . | . . . . Robots Melted 3 | . 1 1 1 Combat Hostiles 3 | . 1 1 1 Parts Melted 21 | 1 9 3 8 Heat Transferred 10064 | 259 2664 1628 5513 Parts Sabotaged . | . . . . Parts Stolen . | . . . . Parts Stripped . | . . . . Power Chain Reactions . | . . . . Alert | -11 -10 -10 -10 ------- Run | Yrd Mat Min Sub Maximum Alert Level . | . . . . Low Security (%) 100 | 100 100 100 . Level 1 . | . . . . Level 2 . | . . . . Level 3 . | . . . . Level 4 . | . . . . Level 5 . | . . . . High Security . | . . . . Max Security . | . . . . Peak Influence 70 | 5 70 35 . Initial . | . . . . Average 3 | . 5 2 . Influence Increases 582 | 15 257 105 205 Destroy 0b10 Robot/C 400 | . 160 80 160 Destroy 0b10 Robot/NC 45 | 15 25 5 . Destroy Leader 58 | . 38 20 . Successful Hack 18 | . 18 . . Destroy Structure 1 | . 1 . . Lose Combat Pursuer 60 | . 15 . 45 Influence Decreases 582 | 15 257 105 205 Time Decay 572 | 15 247 105 205 Lost Part 10 | . 10 . . Squads Dispatched 1 | . 1 . . Investigation 1 | . 1 . . Extermination . | . . . . Reinforcement . | . . . . Assault . | . . . . Garrison . | . . . . Intercept . | . . . . Searches Triggered . | . . . . Construction Impeded . | . . . . Haulers Reinforced . | . . . . Active Scanning Responses . | . . . . Cargo Convoy Interrupts . | . . . . Stealth | -11 -10 -10 -10 --------- Run | Yrd Mat Min Sub Distress Signals 1 | . 1 . . Communications Jammed . | . . . . Distress Signals . | . . . . Times Spotted 52 | . 18 4 30 Peak Tracking Total 8 | . 5 2 8 Tactical Retreats 3 | . 2 . 1 Traps | -11 -10 -10 -10 ------- Run | Yrd Mat Min Sub Traps Triggered 5 | . 5 . . Indirectly . | . . . . Trap Hack Attempts . | . . . . Triggered . | . . . . Disarmed . | . . . . Reprogrammed . | . . . . Reused . | . . . . Traps Extracted . | . . . . Installed . | . . . . Triggered . | . . . . Machines | -11 -10 -10 -10 ---------- Run | Yrd Mat Min Sub Machines Disabled 2 | . . . 2 Max in Single Turn 1 | . . . 1 Machines Repaired . | . . . . Machines Dismantled . | . . . . Machines Sabotaged . | . . . . Overloaded Fab Kills . | . . . . Hacking | -11 -10 -10 -10 --------- Run | Yrd Mat Min Sub Machines Accessed 11 | . 9 . 2 Terminals 8 | . 8 . . Fabricators . | . . . . Repair Stations . | . . . . Recycling Units 1 | . 1 . . Scanalyzers . | . . . . Garrison Access . | . . . . Total Hacks 18 | . 14 . 4 Successful 15 | . 11 . 4 Failed 3 | . 3 . . Catastrophic . | . . . . Database Lockouts . | . . . . Manual 13 | . 13 . . Terminals 12 | . 12 . . Fabricators . | . . . . Repair Stations . | . . . . Recycling Units 2 | . 2 . . Scanalyzers . | . . . . Garrison Access . | . . . . Terminal Hacks 5 | . 1 . 4 Record 3 | . . . 3 Robot Analysis 1 | . 1 . . Proto ID Catalog 1 | . . . 1 Fabricator Hacks . | . . . . Repair Station Hacks . | . . . . Recycling Unit Hacks 1 | . 1 . . Retrieve Components 1 | . 1 . . Scanalyzer . | . . . . Garrison Access Hacks . | . . . . Unauthorized Hacks 9 | . 9 . . Terminals 8 | . 8 . . Botnet 8 | . 8 . . Fabricators . | . . . . Repair Stations . | . . . . Recycling Units 1 | . 1 . . Reject 1 | . 1 . . Scanalyzers . | . . . . Garrison Access . | . . . . Data Cores Recovered . | . . . . Used . | . . . . Hacking Detections 3 | . 3 . . Full Trace Events 1 | . 1 . . Feedback Events . | . . . . Feedback Blocked . | . . . . Robot Schematics Acquired . | . . . . Robots Built . | . . . . Authchips . | . . . . Time . | . . . . Total Robot Build Rating . | . . . . Part Schematics Acquired . | . . . . Parts Built . | . . . . Authchips . | . . . . Time . | . . . . Total Part Build Rating . | . . . . Part Studies Acquired . | . . . . Parts Repaired . | . . . . Time . | . . . . Parts Recycled . | . . . . Recycled Matter . | . . . . Retrieved Matter . | . . . . Retrieved Components 3 | . 3 . . Parts Scanalyzed . | . . . . Part Schematics Acquired . | . . . . Parts Damaged . | . . . . Bothacking | -11 -10 -10 -10 ------------ Run | Yrd Mat Min Sub Used RIF Installer . | . . . . Robots Hacked . | . . . . Non-combat . | . . . . Combat . | . . . . Robot Hacks Applied . | . . . . Relay Couplers Released . | . . . . Fabnet Peak Effective % . | . . . . Robots Rewired . | . . . . Allies Hacked . | . . . . Hacks Repelled . | . . . . Allies | -11 -10 -10 -10 -------- Run | Yrd Mat Min Sub Total Allies . | . . . . Largest Group . | . . . . Highest-Rated Group . | . . . . Highest-Rated Ally . | . . . . Total Orders . | . . . . Ally Attacks . | . . . . Total Damage . | . . . . Kills . | . . . . Allies Corrupted . | . . . . Allies Melted . | . . . . Intel | -11 -10 -10 -10 ------- Run | Yrd Mat Min Sub Active Infowar (turns) . | . . . . Robot Analysis Total 1 | . 1 . . Derelict Logs Recovered 2 | . . 1 1 Drone Launches . | . . . . Drone Recoveries . | . . . . Exploration | -11 -10 -10 -10 ------------- Run | Yrd Mat Min Sub Turns Passed 7390 | 118 1706 1429 4137 Spaces Moved 3451 | 56 856 769 1770 Core 23 | 23 . . . Treads 3335 | 33 856 769 1677 Legs 93 | . . . 93 Wheels . | . . . . Hover . | . . . . Flight . | . . . . Fastest Speed 50 | 50 160 160 130 Average Speed 176 | 119 173 170 182 Slowest Speed 240 | 160 240 240 240 Overloaded Moves . | . . . . Propulsion Burnouts . | . . . . Robots Hopped . | . . . . Potential Cave-ins 2 | . . . 2 Cave-ins Triggered . | . . . . Exploration Rate (%) 71 | 5 98 99 84 Regions Visited 3 Branch Regions 2 Pre-discovered Areas 1 | . . . 1 Known Exits Taken 3 | 1 1 1 . Unknown Exits Taken . | . . . . Scrap Searched 23 | . . 1 22 Spaces Dug 16 | . . . 16 Terrain Destroyed 16 | . . . 16 Melee . | . . . . Projectile 16 | . . . 16 AOE . | . . . . Terrain Rammed . | . . . . Walls Destroyed . | . . . . Machines Disabled . | . . . . Actions | -11 -10 -10 -10 --------- Run | Yrd Mat Min Sub Total 4348 | 92 998 846 2412 Wait 571 | 15 48 42 466 Move 3448 | 55 855 768 1770 Hop . | . . . . Pick Up 33 | 8 14 2 9 Fast Attach 13 | 3 7 1 2 Attach 9 | 4 4 1 . Detach . | . . . . Swap 13 | . 3 2 8 Drop 20 | . 6 2 12 Fire 239 | 7 59 28 145 Melee . | . . . . Ram . | . . . . Kick . | . . . . Crush 2 | . 2 . . Escape Stasis . | . . . . Rewire . | . . . . Trap . | . . . . Miscellaneous . | . . . . Route ------- -11/Scrapyard -10/Materials (discovered 4 exits: *Mat x3 / *Min) -10/Mines (discovered 4 exits: *Mat x2 / *Exi / *Sub) -10/Subcaves (discovered 4 exits: *Mat x2 / *Rec / [*Scr]) History --------- Turn | Location | Event 47 | -11/Scrapyard | Identified exit to Materials 47 | -11/Scrapyard | Discovered exit to Materials (range 16) 119 | -11/Scrapyard | Entered Materials 119 | -10/Materials | Evolved 1 slot: Utility x1 291 | -10/Materials | Identified exit to Mines 291 | -10/Materials | Discovered exit to Mines (range 16) 310 | -10/Materials | Build established: Hacker-Mutant 477 | -10/Materials | Identified exit to Materials 477 | -10/Materials | Discovered exit to Materials (range 16) 795 | -10/Materials | Discovered exit to Materials (range 11) 1298 | -10/Materials | Discovered exit to Materials (range 14) 1319 | -10/Materials | Derelicts attacked the area 1825 | -10/Materials | Entered Mines 1840 | -10/Mines | Met a Derelict bent on vengeance 2473 | -10/Mines | Learned Materials garrison access intel 2478 | -10/Mines | Discovered exit to Materials (range 6) 2567 | -10/Mines | Identified exit to Subcaves 2567 | -10/Mines | Discovered exit to Subcaves (range 8) 2578 | -10/Mines | Received a Rocket Launcher from a helpful Derelict 2713 | -10/Mines | Discovered exit to Materials (range 11) 3059 | -10/Mines | Deemed a non-threat by the Exiles lab entrance 3059 | -10/Mines | Identified exit to Exiles 3059 | -10/Mines | Discovered exit to Exiles (range 5) 3254 | -10/Mines | Entered Subcaves 3255 | -10/Subcaves | Approached by a straggling Scientist 3293 | -10/Subcaves | Ambushed by Subdweller buried in earth 3304 | -10/Subcaves | Core integrity fell below 50% 3452 | -10/Subcaves | Ambushed by swarm of Subdwellers 3501 | -10/Subcaves | Lost 3 allies 3726 | -10/Subcaves | A swath of the cavern ceiling suddenly collapsed 3859 | -10/Subcaves | Build established: Scavenger-Mutant 3931 | -10/Subcaves | Scientist uncovered a shortcut to Scraptown 4375 | -10/Subcaves | A swath of the cavern ceiling suddenly collapsed 4497 | -10/Subcaves | Shifting Twisted Machinery released Sub. Machine Gun 4510 | -10/Subcaves | Shifting Twisted Machinery released Sub. Monowheel 4599 | -10/Subcaves | Disturbed a concealed Subdweller 4972 | -10/Subcaves | Ambushed by Subdweller buried in earth 5232 | -10/Subcaves | Identified exit to Recycling 5232 | -10/Subcaves | Discovered exit to Recycling (range 16) 5407 | -10/Subcaves | Shifting Twisted Machinery released Battle Cannon 5411 | -10/Subcaves | Shifting Twisted Machinery released Piercing Trap 5466 | -10/Subcaves | Disturbed a concealed Subdweller 5486 | -10/Subcaves | Core integrity fell below 20% 5767 | -10/Subcaves | Build established: Hacker-Mutant 6612 | -10/Subcaves | Learned location of Zion (-6) 6612 | -10/Subcaves | Met a Zionite searching for "candidates" 6627 | -10/Subcaves | Learned 2 Materials zone layouts 6656 | -10/Subcaves | Visited Clippyterm 6663 | -10/Subcaves | Identified exit to Materials 7141 | -10/Subcaves | Visited 4L-MR0's lab 7190 | -10/Subcaves | Found Cargo Legs 7191 | -10/Subcaves | Attached Cargo Legs, gained temporary slots: Utility x2 7391 | -10/Subcaves | Destroyed by B4-CEN(R) with Subdweller Laser Last Messages --------------- slot. 07223_ Searching scrap... 07223_ Found Piercing Trap. 07223_ Found 61 Matter. 07224_ Acquired 50 matter. 07313_ Sub. Laser melted. 07313_ ZQ-6M7(R) destroyed. 07340_ 9L-7AC(R) destroyed. 07375_ HH-EHK(R) suffers critical hit (Burn). 07378_ HH-EHK(R) overheating. 07379_ HH-EHK(R) heat damages Sub. Monowheel. 07381_ Destroyed Sub. Monowheel. 07387_ Ion Engine destroyed. 07390_ Disposable Heat Sink melted. 07390_ HH-EHK(R) destroyed. 07390_ Switching to secondary target: B4-CEN(R). 07390_ B4-CEN(R) suffers critical hit (Burn). 07391_ B4-CEN(R) heat short circuits Sub. Optics. Map ----- +----------------------------------------------------+ | ??????????????????????????????????????????? | | ??????????????????????????????????????????? | | ??????????????????????????????????????????? | | ??????????????????????????????????????????? | | ??????????????????????????????????????????? | | ??????????????????????????????????????????? | | ??????????????????????????????????????????? | | ??????????????????????????????????????????? | | ??????????????????????????????????????????? | | ??????????????????????????????????????????? | | ??????????????????????????????????????????? | | ??????????????????????????????????????????? | | ??????????????????????????????????????????? | | ??????????????????????????????????????????? | | ?????????????????????##???????????????????? | | ???????????????????? #???????????????????? | | ????????????????????%